Cogmind - Beta 16.1 @@@ ROGUE MODE // 2026.04.24 @ 12:55:40 Player: Bereft Result: Smashed by cave-in Performance ------------- Evolutions (0) 0 Regions Visited (0) 0 Robots Destroyed (13) 65 Value Destroyed (72) 72 Prototype IDs (0) 0 Alien Tech Used (0) 0 Bonus (0) 0 TOTAL SCORE: 137 Bonus ------- None Cogmind --------- Core Integrity 0/250 Matter 115/300 Energy 97/100 System Corruption 17% Temperature Danger (424) Movement Core (100) Ox1 Location -11/Scrapyard Parts ------- > --- POWER (1) -------- (None) > --- PROPULSION (2) --- (None) > --- UTILITY (2) ------ Improved Terrain Scanner Seismic Detector > --- WEAPON (2) ------- Small Laser Assault Rifle > --- INVENTORY (5) ---- Light Ion Engine Small Storage Unit Medium Laser Peak State ------------ > --- POWER ------------ Light Ion Engine > --- PROPULSION ------- Aluminum Leg Aluminum Leg > --- UTILITY ---------- Small Storage Unit Improved Terrain Scanner > --- WEAPON ----------- Medium Laser Assault Rifle > --- INVENTORY -------- Light Ion Engine Small Laser [Rating: 9] Favorites ----------- Power Light Ion Engine Engine Light Ion Engine Propulsion Aluminum Leg Leg Aluminum Leg Wheel Wheel Utility Improved Terrain Scanner Device Improved Terrain Scanner Storage Small Storage Unit Weapon Medium Laser Energy Gun Medium Laser Ballistic Gun Assault Rifle Special Weapon Mining Laser Build | -11 ------- Run | Yrd Slots Evolved . | . Power . | . Propulsion . | . Utility . | . Weapon . | . Parts Attached 16 | 16 Power 3 | 3 Engine 3 | 3 Core . | . Reactor . | . Propulsion 4 | 4 Treads . | . Leg 2 | 2 Wheel 2 | 2 Hover . | . Flight . | . Utility 4 | 4 Device 3 | 3 Storage 1 | 1 Processor . | . Hackware . | . Protection . | . Artifact . | . Weapon 5 | 5 Energy Gun 2 | 2 Energy Cannon . | . Ballistic Gun 1 | 1 Ballistic Cannon . | . Launcher . | . Special Weapon 2 | 2 Impact Weapon . | . Slashing Weapon . | . Piercing Weapon . | . Special Melee Weapon . | . Unidentified Prototypes . | . Parts Lost 9 | 9 Power 3 | 3 Propulsion 3 | 3 Utility 1 | 1 Weapon 2 | 2 Highest Loss Streak 3 | 3 To Critical Strikes . | . Average Backups 3 | 3 Power . | . Propulsion . | . Utility . | . Weapon 1 | 1 Tool/Special . | . Unused Backups 1 | 1 Power 1 | 1 Propulsion . | . Utility . | . Weapon . | . Tool/Special . | . Average Slot Usage (%) . | . Peak Build Rating 9 | 9 Average Rating 8 | 8 On Entrance . | . Avg Prop Armor Cover (%) . | . Naked Turns . | . Heaviest Build 13 | 13 Greatest Support 20 | 20 Greatest Overweight (x) . | . Average Overweight (x) . | . Largest Inventory Capacity 8 | 8 Average Capacity 5 | 5 Most Carried 5 | 5 Average Carried 3 | 3 Final Capacity 5 | 5 Final Carried 3 | 3 Class Distribution -------------------- None Dominant Class ---------------- None Resources | -11 ----------- Run | Yrd Matter Collected 486 | 486 Remotely . | . Salvage Created 298 | 298 Parts 28 | 28 Haulers Intercepted . | . Recyclers Shooed . | . Parts Field Recycled . | . Retrieved Matter . | . Parts Self-Destructed . | . Prevented . | . Parts Restored . | . Kills | -11 ------- Run | Yrd Combat Hostiles Destroyed . | . Classes Destroyed 3 | 3 Worker 3 | 3 Tunneler 9 | 9 Recycler 1 | 1 Best Kill Streak 2 | 2 Combat Bots Only . | . Max Kills in Single Turn 1 | 1 Gunslinging . | . Exploded . | . Melee . | . Uniques/NPCs Destroyed . | . Combat | -11 -------- Run | Yrd Hostile Shots Fired . | . Missed . | . Hits . | . Damage Taken 951 | 951 Core 261 | 261 Absorbed by Shields . | . Core Remaining (%) . | . Volleys Fired 91 | 91 Largest 2 | 2 Hottest 200 | 200 Shots Fired 167 | 167 Gun 139 | 139 Cannon . | . Launcher . | . Special 28 | 28 Kinetic 25 | 25 Thermal 142 | 142 Explosive . | . Electromagnetic . | . Robot Hit Streak 6 | 6 Robot Miss Streak 5 | 5 Penetration Max . | . Secondary Targets . | . Shots Hit Robots 43 | 43 Core Hits 14 | 14 Critical Kills . | . Critical Parts Destroyed . | . Critical Strikes 5 | 5 Burn 5 | 5 Melee Attacks . | . Impact . | . Slashing . | . Piercing . | . Sneak Attacks . | . Combat Hostiles . | . Follow-up Attacks . | . Damage Inflicted 546 | 546 Guns 546 | 546 Cannons . | . Explosions . | . Melee . | . Ramming . | . Kinetic 193 | 193 Thermal 353 | 353 Explosive . | . Electromagnetic . | . Impact . | . Slashing . | . Piercing . | . Highest Corruption 12 | 12 Average Corruption 11 | 11 Corruption Purged . | . Corruption Blocked . | . Effects 54 | 54 Message Errors 11 | 11 Matter Fused 15 | 15 Heat Flow Errors 4 | 4 Energy Discharges 5 | 5 Parts Fused 1 | 1 Data Loss (minor) 6 | 6 Data Loss (major) 1 | 1 Misfires 4 | 4 Alerts 3 | 3 Weapon Failures 4 | 4 Overload Shots . | . Overflow Damage . | . Projectiles . | . Explosions . | . Melee . | . Knockbacks . | . Impact . | . Kinetic . | . Secondary . | . Self-Inflicted Damage . | . Shots . | . Rammed . | . Targets Rammed . | . Kicked . | . Crushed . | . Highest Temperature 564 | 564 Average Temperature 120 | 120 Received Heat Transfer . | . Effects 29 | 29 Shutdowns 6 | 6 Energy Bleed 4 | 4 Interference 5 | 5 Matter Decay 4 | 4 Short Circuit 2 | 2 Damage (major) 6 | 6 Damage (core) 2 | 2 Siege Activations . | . Martial Activations . | . Shielding Activations . | . Robots Disrupted . | . Combat Hostiles . | . Robots Corrupted . | . Combat Hostiles . | . Parts Fried . | . Impact Corruptions . | . Robots Melted . | . Combat Hostiles . | . Parts Melted . | . Heat Transferred 1347 | 1347 Parts Sabotaged . | . Parts Stolen . | . Parts Stripped . | . Power Chain Reactions . | . Alert | -11 ------- Run | Yrd Maximum Alert Level . | . Low Security (%) 100 | 100 Level 1 . | . Level 2 . | . Level 3 . | . Level 4 . | . Level 5 . | . High Security . | . Max Security . | . Peak Influence 25 | 25 Initial . | . Average 5 | 5 Influence Increases 65 | 65 Destroy 0b10 Robot/NC 65 | 65 Influence Decreases 65 | 65 Time Decay 40 | 40 Lost Part 25 | 25 Squads Dispatched . | . Investigation . | . Extermination . | . Reinforcement . | . Assault . | . Garrison . | . Intercept . | . Searches Triggered . | . Construction Impeded . | . Haulers Reinforced . | . Active Scanning Responses . | . Cargo Convoy Interrupts . | . Stealth | -11 --------- Run | Yrd Distress Signals . | . Communications Jammed . | . Distress Signals . | . Times Spotted . | . Peak Tracking Total . | . Tactical Retreats . | . Traps | -11 ------- Run | Yrd Traps Triggered . | . Indirectly . | . Trap Hack Attempts . | . Triggered . | . Disarmed . | . Reprogrammed . | . Reused . | . Traps Extracted . | . Installed . | . Triggered . | . Machines | -11 ---------- Run | Yrd Machines Disabled . | . Max in Single Turn . | . Machines Repaired . | . Machines Dismantled . | . Machines Sabotaged . | . Overloaded Fab Kills . | . Hacking | -11 --------- Run | Yrd Machines Accessed . | . Terminals . | . Fabricators . | . Repair Stations . | . Recycling Units . | . Scanalyzers . | . Garrison Access . | . Total Hacks . | . Successful . | . Failed . | . Catastrophic . | . Database Lockouts . | . Manual . | . Terminals . | . Fabricators . | . Repair Stations . | . Recycling Units . | . Scanalyzers . | . Garrison Access . | . Terminal Hacks . | . Fabricator Hacks . | . Repair Station Hacks . | . Recycling Unit Hacks . | . Scanalyzer . | . Garrison Access Hacks . | . Unauthorized Hacks . | . Terminals . | . Fabricators . | . Repair Stations . | . Recycling Units . | . Scanalyzers . | . Garrison Access . | . Data Cores Recovered . | . Used . | . Hacking Detections . | . Full Trace Events . | . Feedback Events . | . Feedback Blocked . | . Robot Schematics Acquired . | . Robots Built . | . Authchips . | . Time . | . Total Robot Build Rating . | . Part Schematics Acquired . | . Parts Built . | . Authchips . | . Time . | . Total Part Build Rating . | . Part Studies Acquired . | . Parts Repaired . | . Time . | . Parts Recycled . | . Recycled Matter . | . Retrieved Matter . | . Retrieved Components . | . Parts Scanalyzed . | . Part Schematics Acquired . | . Parts Damaged . | . Bothacking | -11 ------------ Run | Yrd Used RIF Installer . | . Robots Hacked . | . Non-combat . | . Combat . | . Robot Hacks Applied . | . Relay Couplers Released . | . Fabnet Peak Effective % . | . Robots Rewired . | . Allies Hacked . | . Hacks Repelled . | . Allies | -11 -------- Run | Yrd Total Allies . | . Largest Group . | . Highest-Rated Group . | . Highest-Rated Ally . | . Total Orders . | . Ally Attacks . | . Total Damage . | . Kills . | . Allies Corrupted . | . Allies Melted . | . Intel | -11 ------- Run | Yrd Active Infowar (turns) 5797 | 5797 Terrain 5789 | 5789 Seismic 5063 | 5063 Robot Analysis Total . | . Derelict Logs Recovered . | . Drone Launches . | . Drone Recoveries . | . Exploration | -11 ------------- Run | Yrd Turns Passed 5911 | 5911 Spaces Moved 2067 | 2067 Core 2 | 2 Treads . | . Legs 1398 | 1398 Wheels 667 | 667 Hover . | . Flight . | . Fastest Speed 50 | 50 Average Speed 107 | 107 Slowest Speed 120 | 120 Overloaded Moves . | . Propulsion Burnouts . | . Robots Hopped . | . Potential Cave-ins 12 | 12 Cave-ins Triggered 3 | 3 Exploration Rate (%) 76 | 76 Regions Visited . Branch Regions . Pre-discovered Areas . | . Known Exits Taken . | . Unknown Exits Taken . | . Scrap Searched . | . Spaces Dug 26 | 26 Terrain Destroyed 26 | 26 Melee . | . Projectile 26 | 26 AOE . | . Terrain Rammed . | . Walls Destroyed . | . Machines Disabled . | . Actions | -11 --------- Run | Yrd Total 5539 | 5539 Wait 3353 | 3353 Move 2066 | 2066 Hop . | . Pick Up 8 | 8 Fast Attach 8 | 8 Attach 6 | 6 Detach . | . Swap 5 | 5 Drop 1 | 1 Fire 91 | 91 Melee . | . Ram . | . Kick . | . Crush . | . Escape Stasis 1 | 1 Rewire . | . Trap . | . Miscellaneous . | . Route ------- -11/Scrapyard (discovered 1 exit: [*Mat]) History --------- Turn | Location | Event 26 | -11/Scrapyard | Discovered new exit (range 14) 4408 | -11/Scrapyard | Crushed by falling debris 4439 | -11/Scrapyard | Lost 3 parts (1p1u1w) 4447 | -11/Scrapyard | Crushed by falling debris 4448 | -11/Scrapyard | Core integrity fell below 50% 4448 | -11/Scrapyard | System corruption reached 10% 4478 | -11/Scrapyard | Lost 3 parts (1p1n1w) 5889 | -11/Scrapyard | Core integrity fell below 20% 5913 | -11/Scrapyard | Crushed by falling debris 5913 | -11/Scrapyard | Smashed by cave-in Last Messages --------------- Overheating: Med. Laser damaged (-44). Overheating: System interference. Sml. Laser temporarily disabled. Overheating: Matter decay (-20). Overheating: System interference. Med. Laser temporarily disabled. Power failure, Lgt. Ion Engine shutdown. Overheating: Matter decay (-26). Wheel broken. Overheating: Short circuit. System corrupted: Matter fused (-5). Power failure, Lgt. Ion Engine shutdown. The unstable cave ceiling collapses. Crushed by falling debris. Wheel destroyed. System corrupted by crushing effect (+2). Lgt. Ion Engine destroyed. System corrupted by crushing effect (+2). Broken Wheel destroyed. System corrupted by crushing effect (+1). Map ----- +----------------------------------------------------+ | | | | | | | | | | | | | | | | | | | | | | | | | | | ?????????????????####?###?#?####????????????????? | | ?????????????#??????#???????#??#??#?????????????? | | ????????????#?#######??#??#??#?###??????#???????? | | ???????????##?#?####?#?####?#######?#???????????? | | ?????????#?###############?#?###????##?#????????? | | ???????#??#########?#####??####???#####?????????? | | ??????###?##?###?##############?##????#?????????? | | ??????????##?####?###########?#?##? ????????????? | | ???????#??#######???###########?#?? ????????????? | | ???####?########################?# ??? ????????? | | #?#?##??######?#######?###########? " ????????? | | ?????###################### #####??" ????????? | | ?????####?####?##?# @### ####? ?#???????? | | ???????#?########## ########?#? #??##????? | | #?#?#??##?######### ########?#?#??#????????? | | ?##??######?#?##### ####??##?####??#???????? | | ????#####?#?####### ####?#?######?#??#?????? | | ##??#??############ #?##?#####?####????????? | | ?#?####?########### #######?########???????? | | ?########### ### ###########?##??????????? | | ## #### ##### ###############?????????? | | ?# #### ##### ####??######???????????? | | ## #?## ##### ##?#?##???####?????????? | | # #?## ##### ##########?####????????? | | # #### ##### ###########?#???????????? | | # #### ######## ### ##??#?###?????????? | | # ##?# #?#????#??????????? | | # #?## ##??#?#???????????? | | # ##?# ##### ######????????????? | | # ##?# #?#########????????????????? | | # #### ############???????????????? | | ###### ##### ####### #??#????????????? | | ##??#????????#??? | | ! #???????????????? | | ##### ##################### ##??????????????? | | ##### #?###???####??#?###### ######????????????? | | # ####?#?#?#????###?# #????#?????#?? | +----------------------------------------------------+ Best States ------------- Heat Dissipation 25 Energy Generation 10 Energy Capacity 125 Matter Stores 300 Matter Capacity 300 Sight Range 16 Terrain Scan Range 16 Terrain Scan Density 10 Evasion (%) 55 Item Schematics ----------------- None Robot Schematics ------------------ None Fabricated ------------ Nothing Repaired ---------- Nothing Studied --------- None Alien Tech Used ----------------- None Achievements -------------- None Challenges ------------ None Game ------ Seed ThiefExperimentalFist Manual? 0 Play Time 00:31:08 Cumulative 23.6 hours Start 2026.04.24 @ 12:38:49 End 2026.04.24 @ 12:55:40 Sessions 0 Manual Loads 0 Difficulty Rogue Special Mode None Game No. 38 Rogue 38 Adventurer 0 Explorer 0 Win Type - Total 0 Types 0/0/0/0/0/0/0/0/0/0 Lore% 22 Gallery% 22 Achievement% 21 Wizard Run 0 Options --------- Layout 1 ASCII 0 Keyboard 0 Movement Numpad Keybinds 0 Fullscreen 1 Font 32/SmallcapsGlow Map View 50x35 Zoom Use 0% Tactical HUD 0 Map Filters NONE Filters NONE Steam 1 RUN: 545d4171-4127-47be-beeb-c68e00d63fe1